Cogmind - Beta 15 @@@ ROGUE MODE // 2025.07.30 @ 22:18:42 Player: FrigidRock Result: Destroyed by H-77 Assassin with High-powered Shotgun Performance ------------- Evolutions (7) 3500 Regions Visited (27) 5400 Robots Destroyed (192) 960 Value Destroyed (8991) 8991 Prototype IDs (25) 500 Alien Tech Used (0) 0 Bonus (7350) 7350 TOTAL SCORE: 26701 Bonus ------- Triggered High Security 500 High Alert Combat Kills 631 Follower Combat Kills 2343 Entered Garrisons 600 Used RIF Installer 1500 Met Data Miner 300 Met Zhirov 300 Met R17 at Cetus 500 Read Decrypted Archives 300 Scanned by Researcher 500 Friendly Fire -124 Cogmind --------- Core Integrity 0/1300 Matter 258/300 Energy 99/100 System Corruption 11% Temperature Cool (0) Movement Core (50) Location -3/Testing Parts ------- > --- POWER (2) -------- (None) > --- PROPULSION (6) --- Improved Gyrokinetic Inverter > --- UTILITY (10) ----- (None) > --- WEAPON (3) ------- (None) > --- INVENTORY (5) ---- Improved Point Defense System Improved Remote Datajack Peak State ------------ > --- POWER ------------ Antimatter Reactor Light Particle Reactor > --- PROPULSION ------- Improved Heavy Treads Centrium Heavy Treads Multireflex Exoskeleton > --- UTILITY ---------- Improved Cryofiber Web Improved Signal Interpreter Advanced Signal Interpreter Improved Particle Charger Advanced Transmission Jammer Centrium Medium Armor Plating Centrium Medium Armor Plating Hacking Suite Relay Coupler [Brawler] Relay Coupler [Sentry] > --- WEAPON ----------- Heavy Tesla Rifle Advanced Variable Charge Gun Advanced Micro-nuke Launcher > --- INVENTORY -------- Improved Point Defense System Heavy Tesla Rifle KE Penetrator Improved Remote Datajack [Rating: 139] Favorites ----------- Power Light Nuclear Core Engine Improved Deuterium Engine Power Core Light Nuclear Core Reactor Quantum Reactor Propulsion Carbon-fiber Leg Treads Heavy Treads Leg Carbon-fiber Leg Wheel Armored Huge Wheel Hover Unit Airjet Flight Unit Cesium-ion Thruster Utility Hacking Suite Device Advanced Heat Sink Storage High-capacity Storage Unit Processor Launcher Guidance Computer Hackware Hacking Suite Protection Centrium Medium Armor Plating Weapon Advanced Variable Charge Gun Energy Gun Advanced Variable Charge Gun Energy Cannon Heavy Ion Cannon Ballistic Gun Flak Gun Ballistic Cannon Enhanced Gauss Cannon Launcher Improved Proton Missile Launcher Special Weapon Improved Remote Datajack Build | -11 -10 -10 -10 -9 -8 -8 -8 -8 -7 -7 -7 -7 -6 -6 -6 -6 -6 -5 -5 -5 -5 -5 -5 -5 -4 -3 -3 ------- Run | Yrd Mat Min Exi Min Mat Gar Mat Gar Fac Low Low Zio Pro Fac Low Low Dat Pro Fac Ext Cet Arc Hub Gar Fac Res Tes Slots Evolved 14 | . . . . . 4 . . . 2 . . . . 2 . . . . 2 . . . . . 2 2 . Power 1 | . . . . . . . . . . . . . . 1 . . . . . . . . . . . . . Propulsion 4 | . . . . . 2 . . . 1 . . . . . . . . . 1 . . . . . . . . Utility 8 | . . . . . 2 . . . 1 . . . . 1 . . . . 1 . . . . . 2 1 . Weapon 1 | . . . . . . . . . . . . . . . . . . . . . . . . . . 1 . Parts Attached 268 | 4 4 3 . 2 8 4 25 3 21 1 2 1 2 36 1 5 . 5 21 46 19 . 10 11 17 4 13 Power 35 | . 1 1 . . 1 1 3 1 1 . . . . 5 . 1 . 1 3 5 5 . . 1 2 1 2 Engine 14 | . 1 1 . . 1 1 3 . . . . . . 3 . . . 1 . . 2 . . . . . 1 Core 16 | . . . . . . . . 1 1 . . . . 2 . 1 . . 3 5 1 . . 1 1 . . Reactor 5 | . . . . . . . . . . . . . . . . . . . . . 2 . . . 1 1 1 Propulsion 98 | 2 2 1 . 1 4 3 9 1 12 . 1 . 1 7 . 2 . 2 6 21 5 . 6 2 5 . 5 Treads 5 | . . . . . . . . . . . . . 1 . . . . . 1 1 1 . . . . . 1 Leg 59 | 2 2 . . 1 . . . . 5 . . . . 6 . 2 . 2 . 19 4 . 6 2 5 . 3 Wheel 7 | . . . . . . . 4 . 2 . . . . 1 . . . . . . . . . . . . . Hover 9 | . . 1 . . . . 3 . 1 . . . . . . . . . 2 1 . . . . . . 1 Flight 18 | . . . . . 4 3 2 1 4 . 1 . . . . . . . 3 . . . . . . . . Utility 87 | . 1 . . . 2 . 4 . 5 1 . 1 1 18 1 2 . . 7 15 5 . 1 8 9 3 3 Device 27 | . . . . . . . . . 3 . . . . 3 1 1 . . 2 7 3 . . 2 3 1 1 Storage 4 | . . . . . . . 1 . . . . . . 1 . . . . . 2 . . . . . . . Processor 14 | . 1 . . . 1 . 1 . . . . . . 2 . 1 . . 3 1 1 . . . 1 2 . Hackware 19 | . . . . . . . 1 . 1 . . . 1 4 . . . . 1 . . . 1 5 4 . 1 Protection 23 | . . . . . 1 . 1 . 1 1 . 1 . 8 . . . . 1 5 1 . . 1 1 . 1 Artifact . | . . . . . . . . . . . . . . . . . . . . . . . . . . . . Weapon 48 | 2 . 1 . 1 1 . 9 1 3 . 1 . . 6 . . . 2 5 5 4 . 3 . 1 . 3 Energy Gun 15 | 2 . . . . . . 3 . . . . . . . . . . 1 1 2 2 . 2 . . . 2 Energy Cannon 6 | . . . . . . . 1 . 1 . . . . 2 . . . . . 2 . . . . . . . Ballistic Gun 6 | . . . . . 1 . 1 . . . . . . 1 . . . 1 1 . . . 1 . . . . Ballistic Cannon 11 | . . . . . . . 3 . 2 . . . . 2 . . . . 2 . 2 . . . . . . Launcher 8 | . . 1 . 1 . . 1 1 . . 1 . . 1 . . . . . . . . . . 1 . 1 Special Weapon 2 | . . . . . . . . . . . . . . . . . . . 1 1 . . . . . . . Impact Weapon . | . . . . . . . . . . . . . . . . . . . . . . . . . . . . Slashing Weapon . | . . . . . . . . . . . . . . . . . . . . . . . . . . . . Piercing Weapon . | . . . . . . . . . . . . . . . . . . . . . . . . . . . . Special Melee Weapon . | . . . . . . . . . . . . . . . . . . . . . . . . . . . . Unidentified Prototypes 14 | . . . . . 1 . 3 . . . . . . . . . . . 1 . 3 . . . 1 . 5 Corrupted Parts 4 | . . . . 1 . . . . . . . . . 1 . . . 2 . . . . . . . . . System Corruption 27 | . . . . 3 . . . . . . . . . 4 . . . 20 . . . . . . . . . Parts Lost 160 | . 1 3 . 3 . 8 9 4 15 . 4 . 1 15 . 4 . 13 7 21 9 . 3 5 5 10 20 Power 24 | . . 1 . 1 . 2 1 . 1 . 1 . . 3 . . . 3 1 2 1 . . 1 1 1 4 Propulsion 69 | . 1 1 . . . 4 6 3 8 . 2 . . 3 . 3 . 6 1 11 5 . 1 2 3 5 4 Utility 42 | . . . . . . 1 2 . 3 . 1 . 1 8 . . . 1 4 5 2 . . 2 . 4 8 Weapon 25 | . . 1 . 2 . 1 . 1 3 . . . . 1 . 1 . 3 1 3 1 . 2 . 1 . 4 Highest Loss Streak 14 | . 1 3 . 3 . 4 3 4 14 . 2 . 1 5 . 2 . 7 7 12 7 . 3 1 2 5 9 To Critical Strikes 5 | . . . . . . . 1 . . . . . . . . . . 1 . 1 . . . 1 . . 1 Average Backups 11 | . 2 5 5 5 4 4 4 4 4 5 4 5 4 15 19 19 19 14 4 13 18 19 17 18 17 14 3 Power 1 | . 1 1 1 1 . . . . . . . . . . 1 1 1 . . 1 3 4 3 2 1 . . Propulsion 1 | . . 2 2 2 2 3 . 2 . . . . . 4 1 . 2 1 . 2 2 3 3 3 2 1 . Utility 4 | . . 1 2 2 1 1 1 1 1 2 2 2 2 5 8 8 9 7 2 4 5 5 4 8 8 7 1 Weapon 3 | . . . . . . . 1 . . 1 1 2 1 4 7 6 5 2 1 3 5 6 4 3 3 4 1 Tool/Special . | . . . . . . . . . . . . . . . . . . . . . . . . . . . . Unused Backups 33 | . 1 1 . . . . 1 . 2 1 1 . . 1 . 3 1 5 1 7 1 . 1 1 1 3 1 Power 4 | . . 1 . . . . . . . . . . . . . 1 . . . 1 . . 1 . . . . Propulsion 3 | . . . . . . . 1 . . 1 . . . . . . . . . 1 . . . . . . . Utility 14 | . 1 . . . . . . . . . . . . . . 2 . 4 1 1 . . . . 1 3 1 Weapon 10 | . . . . . . . . . 1 . 1 . . 1 . . 1 . . 4 1 . . 1 . . . Tool/Special 2 | . . . . . . . . . 1 . . . . . . . . 1 . . . . . . . . . Average Slot Usage (%) 81 | . 71 76 71 45 61 82 84 93 71 62 37 41 61 83 99 96 80 74 54 94 97 100 99 99 99 90 67 Engine 2 | . 12 13 14 6 5 7 5 6 . . . . . 8 . . . 1 . . 3 . . . . . . Core 4 | . . . . . . . . 3 5 7 . . . 1 13 13 13 7 5 10 5 . . 3 5 1 . Reactor 1 | . . . . . . . . . . . . . . . . . . . . . 1 11 11 6 4 5 6 Leg 17 | . 26 13 . . 3 . . . 4 7 7 7 7 10 33 30 26 16 . 25 32 35 34 34 30 25 6 Wheel 2 | . . . . . . . 4 27 5 7 7 7 7 9 . . . . . . . . . . . . . Hover 1 | . . 7 14 14 3 . 9 . 2 . . . . . . . . . 3 1 . . . . . . . Flight 3 | . . . . . 23 33 15 2 10 15 4 7 7 . . . . . 9 . . . . . . . . Device 7 | . . . . . . . . . 10 15 8 7 7 4 1 4 6 5 9 15 18 17 17 12 2 1 10 Storage 3 | . . . . . . . 8 9 2 . . . . 5 6 6 6 5 . 4 5 5 5 5 5 3 . Processor 8 | . 3 14 14 14 12 15 10 18 10 . . . . 5 11 10 13 13 10 11 8 11 11 8 5 11 7 Hackware 8 | . . . . . . . 8 9 9 7 7 7 13 6 20 15 13 13 9 . . . . 7 27 21 11 Protection 4 | . . . . . 1 9 6 . . . . 2 5 14 . 1 . . . 5 5 5 5 5 5 4 5 Energy Gun 3 | . 28 19 14 3 . . 6 . . . . . . . . . . . 1 3 4 . 5 9 6 4 7 Energy Cannon 1 | . . . . . . . . 8 3 . . . . 4 . . . 6 . . 1 . . . . . . Ballistic Cannon 1 | . . . . . . . 6 3 3 . . . . 4 . . . . . 3 4 11 1 . . . . Launcher 2 | . . 8 14 7 9 8 1 6 . . . . 4 1 12 11 . . . . . . . . . . 2 Peak Build Rating 139 | 4 6 12 12 12 27 27 37 27 37 37 30 25 38 68 61 63 52 52 63 83 102 99 113 115 113 129 139 Average Rating 58 | 2 5 9 12 7 18 25 28 24 29 30 21 23 34 59 59 58 47 44 35 73 90 99 102 105 103 109 99 On Entrance 46 | . 4 6 12 12 9 27 20 25 27 37 30 22 25 35 57 61 56 47 25 57 82 99 99 113 95 104 115 Naked Turns 25 | . . . . . . . . . . . . . . . . . . . . . . . . . . . 25 Heaviest Build 108 | 3 8 8 8 8 13 13 22 17 21 8 7 4 11 94 67 78 56 72 19 88 108 108 108 102 93 97 70 Greatest Support 155 | 20 20 20 12 12 20 20 58 58 20 9 20 5 5 82 82 87 67 72 14 100 115 115 132 130 127 111 155 Greatest Overweight (x) 4 | . . . . . . . 3 1 4 . . . 2 3 . 1 . 1 2 1 1 . 1 . . 1 1 Average Overweight (x) . | . . . . . . . . . . . . . . 1 . . . . . . . . . . . . . Largest Inventory Capacity 20 | 5 5 5 5 5 5 5 5 5 5 5 5 5 5 20 20 20 20 20 5 20 20 20 20 20 20 20 5 Average Capacity 13 | 5 5 5 5 5 5 5 5 5 5 5 5 5 5 19 20 20 20 17 5 17 20 20 20 20 20 17 5 Most Carried 20 | . 5 5 5 5 5 5 5 5 5 5 5 5 5 20 20 20 20 20 5 20 20 20 20 20 20 18 5 Average Carried 12 | . 2 4 5 4 4 4 4 4 4 5 4 5 4 15 19 19 19 14 4 13 18 20 18 19 18 15 3 Final Capacity 20 | 5 5 5 5 5 5 5 5 5 5 5 5 5 5 20 20 20 20 5 5 20 20 20 20 20 20 5 5 Final Carried 20 | . 5 5 5 4 5 5 5 5 5 5 5 5 4 20 20 19 20 5 5 20 20 20 19 20 17 4 2 Class Distribution -------------------- 28% | Mutant 27% | Hacker-Mutant 23% | Scavenger-Mutant 7% | Bothacker-Mutant 4% | Sprinter 3% | Commander-Mutant 3% | Scavenger-Tank Dominant Class ---------------- Mutant | -10/Materials Mutant | -10/Mines Mutant | -10/Exiles Mutant | -9/Mines Mutant | -8/Materials Sprinter | -8/Garrison Mutant | -8/Materials Scavenger-Mutant | -8/Garrison Mutant | -7/Factory Mutant | -7/Lower Caves Mutant | -7/Lower Caves Mutant | -7/Zion Hacker-Mutant | -6/Proximity Caves Mutant | -6/Factory Hacker-Mutant | -6/Lower Caves Hacker-Mutant | -6/Lower Caves Hacker-Mutant | -6/Data Miner Hacker-Mutant | -5/Proximity Caves Hacker-Mutant | -5/Factory Scavenger-Mutant | -5/Extension Scavenger-Mutant | -5/Cetus Scavenger-Mutant | -5/Archives Scavenger-Mutant | -5/Hub_04(d) Scavenger-Mutant | -5/Garrison Bothacker-Mutant | -4/Factory Bothacker-Mutant | -3/Research Scavenger-Tank | -3/Testing Resources | -11 -10 -10 -10 -9 -8 -8 -8 -8 -7 -7 -7 -7 -6 -6 -6 -6 -6 -5 -5 -5 -5 -5 -5 -5 -4 -3 -3 ----------- Run | Yrd Mat Min Exi Min Mat Gar Mat Gar Fac Low Low Zio Pro Fac Low Low Dat Pro Fac Ext Cet Arc Hub Gar Fac Res Tes Matter Collected 7276 | 203 77 20 . . . 70 781 23 393 . 169 40 209 1041 222 318 . 133 322 1240 550 . 214 337 648 . 266 Remotely 20 | . . . . . . . . . . . . . . . . . . . . 20 . . . . . . . Salvage Created 7611 | . 209 47 . . . 189 909 26 206 . 58 . 108 1295 148 441 . 313 128 933 384 33 289 672 672 137 414 Parts 379 | . 17 4 . . . 25 40 8 7 . . . 3 83 7 14 . 7 12 29 10 2 20 26 26 12 27 Haulers Intercepted 2 | . . . . . . . 2 . . . . . . . . . . . . . . . . . . . . Recyclers Shooed 2 | . . . . . . . 1 . . . . . . 1 . . . . . . . . . . . . . Parts Field Recycled . | . . . . . . . . . . . . . . . . . . . . . . . . . . . . Retrieved Matter . | . . . . . . . . . . . . . . . . . . . . . . . . . . . . Parts Self-Destructed 11 | . . . . . . . . . . . . . 3 . 1 2 . 5 . . . . . . . . . Prevented 12 | . . . . . . . . . . . . . 1 . 4 5 . 2 . . . . . . . . . Kills | -11 -10 -10 -10 -9 -8 -8 -8 -8 -7 -7 -7 -7 -6 -6 -6 -6 -6 -5 -5 -5 -5 -5 -5 -5 -4 -3 -3 ------- Run | Yrd Mat Min Exi Min Mat Gar Mat Gar Fac Low Low Zio Pro Fac Low Low Dat Pro Fac Ext Cet Arc Hub Gar Fac Res Tes Combat Hostiles Destroyed 160 | . 6 2 . . . 13 13 4 8 . . . 2 30 2 10 . 5 5 12 8 . 7 15 6 4 8 Melee 1 | . . . . . . . . . . . . . . . . . . . . . . . . . . . 1 Guns 56 | . 6 2 . . . . 3 . . . . . . 2 . . . 3 5 2 1 . 7 15 2 1 7 Cannons 54 | . . . . . . . 7 2 8 . . . . 19 . . . 1 . 10 7 . . . . . . AOE 42 | . . . . . . 13 3 2 . . . . 2 6 1 10 . . . . . . . . 2 3 . Classes Destroyed 20 | . 4 . . . . 1 6 1 . . . . . 2 . 1 . . . 2 . . 1 . . . 2 Worker 4 | . 1 . . . . . 1 . . . . . . 1 . . . . . . . . . . . . 1 Builder 9 | . 1 . . . . . 1 . . . . . . 4 . . . . . . . . . . 1 . 2 Tunneler 1 | . . . . . . . 1 . . . . . . . . . . . . . . . . . . . . Hauler 2 | . . . . . . . 2 . . . . . . . . . . . . . . . . . . . . Recycler 9 | . . . . . . . 5 . . . . . . . . . . . . 3 . . . . 1 . . Mechanic 1 | . . . . . . . . . . . . . . . . . . . . . . . . . . . 1 Operator 2 | . . . . . . . . . . . . . . . . . . . . 1 . . . . 1 . . Drone 1 | . . . . . . 1 . . . . . . . . . . . . . . . . . . . . . Watcher 2 | . . . . . . . . . . . . . . . . . . . . 1 . . . . 1 . . Swarmer 59 | . 2 2 . . . 8 . 2 4 . . . . 13 . 3 . . 5 3 . . 5 7 1 4 . Cutter 4 | . . . . . . . . 2 . . . . . . . . . . . . . . . 2 . . . Grunt 48 | . 4 . . . . 4 8 . 4 . . . 1 7 2 7 . 3 . 1 . . . 3 2 . 2 Brawler 3 | . . . . . . . 1 . . . . . 1 1 . . . . . . . . . . . . . Duelist 1 | . . . . . . . 1 . . . . . . . . . . . . . . . . . . . . Researcher 1 | . . . . . . . . . . . . . . . . . . . . . . . . . . . 1 Sentry 11 | . . . . . . . 3 . . . . . . 3 . . . 1 . 3 . . 1 . . . . Specialist 2 | . . . . . . . . . . . . . . . . . . . . . . . 1 . 1 . . Hunter 12 | . . . . . . . . . . . . . . 2 . . . . . 2 . . . 2 3 . 3 Programmer 11 | . . . . . . . . . . . . . . 4 . . . 1 . 2 . . . 1 . . 3 Cetus Guard 8 | . . . . . . . . . . . . . . . . . . . . . 8 . . . . . . Samaritan 1 | . . . . . . . . . . . . . . . . 1 . . . . . . . . . . . Thug 1 | . . . . . . . . . . . . . . . . . . . . 1 . . . . . . . Butcher 1 | . . . . . . . . . . . . . . . . . . . . 1 . . . . . . . Best Kill Streak 8 | . 3 2 . . . 7 7 3 6 . . . 2 6 2 4 . 3 3 5 4 . 4 4 4 4 8 Combat Bots Only 7 | . 2 2 . . . 7 4 3 6 . . . 2 6 2 4 . 3 3 5 4 . 4 4 3 4 3 Max Kills in Single Turn 4 | . 1 1 . . . 4 2 1 1 . . . 2 2 1 2 . 1 1 1 1 . 1 2 2 3 2 Gunslinging 1 | . . . . . . . . . . . . . . . . . . . . . . . . 1 . . . Exploded 4 | . . . . . . 4 2 1 . . . . 2 1 1 2 . . . . . . . . 1 3 . Melee 1 | . . . . . . . . . . . . . . . . . . . . . . . . . . . 1 Uniques/NPCs Destroyed . | . . . . . . . . . . . . . . . . . . . . . . . . . . . . Combat | -11 -10 -10 -10 -9 -8 -8 -8 -8 -7 -7 -7 -7 -6 -6 -6 -6 -6 -5 -5 -5 -5 -5 -5 -5 -4 -3 -3 -------- Run | Yrd Mat Min Exi Min Mat Gar Mat Gar Fac Low Low Zio Pro Fac Low Low Dat Pro Fac Ext Cet Arc Hub Gar Fac Res Tes Hostile Shots Fired 1892 | . 29 9 . 16 2 85 94 11 163 3 39 . 5 288 16 23 . 119 87 150 102 . 64 100 88 67 332 Missed 654 | . 10 2 . 8 2 43 30 2 52 2 19 . 3 87 7 13 . 39 33 38 29 . 23 35 43 22 112 Hits 1238 | . 19 7 . 8 . 42 64 9 111 1 20 . 2 201 9 10 . 80 54 112 73 . 41 65 45 45 220 Melee 6 | . . . . 1 . . 1 1 . . . . . 2 . . . . . . . . . 1 . . . Projectile 1232 | . 19 7 . 7 . 42 63 8 111 1 20 . 2 199 9 10 . 80 54 112 73 . 41 64 45 45 220 AOE 15 | . . 12 . . . . . 1 . . . . . . . . . . . . . . . 2 . . . Critical Strikes 52 | . . . . . . 1 2 1 2 . . . . 7 1 1 . 6 . 4 9 . . 4 1 4 9 Part Disruptions 1 | . . . . . . . . . . . . . . . . . . . . . . . . . 1 . . Damage Taken 24310 | . 300 333 . 122 . 634 1240 196 2050 20 424 . 92 2974 168 206 . 1507 852 2596 2003 . 634 1320 1171 913 4555 Core 4229 | . 52 90 . 37 . 21 419 52 483 . 112 . 20 153 . . . 443 227 157 226 . 33 196 193 127 1188 Absorbed by Shields 88 | . . . . . . 88 . . . . . . . . . . . . . . . . . . . . . Reduced by Siege Mode 67 | . . . . . . . . . . . . . . . . . . . . . 67 . . . . . . Redirected to Shielding 150 | . . . . . . . 109 . . . . . . 41 . . . . . . . . . . . . . Core Remaining (%) 39 | 100 . . . 28 . . . 10 . . . . 12 . . . . 29 . . . . . 16 83 . . Volleys Fired 689 | . 21 8 . . . 21 72 10 45 . 9 . 3 92 5 15 . 29 19 93 43 2 19 75 59 10 39 Largest 2 | . 2 2 . . . 1 2 2 2 . 1 . 1 2 1 2 . 2 1 2 2 2 2 2 2 2 2 Hottest 320 | . 90 90 . . . 33 108 108 108 . 39 . 39 119 43 82 . 225 75 137 320 96 240 320 240 273 240 Shots Fired 1074 | . 42 13 . . . 21 117 12 59 . 8 . 4 160 5 18 . 52 19 154 83 4 28 127 64 17 67 Gun 440 | . 42 13 . . . . 60 . . . . . . 8 . . . 11 18 41 18 . 18 113 24 14 60 Cannon 452 | . . . . . . . 54 8 58 . . . . 126 . 5 . 40 1 83 65 4 8 . . . . Launcher 100 | . . . . . . 21 3 4 1 . 8 . 4 26 5 13 . 1 . . . . . . 6 1 7 Special 82 | . . . . . . . . . . . . . . . . . . . . 30 . . 2 14 34 2 . Kinetic 339 | . . . . . . . 52 6 36 . . . . 88 . . . 10 1 69 38 4 11 . 3 7 14 Thermal 472 | . 42 13 . . . . 33 2 22 . . . . 44 . 5 . 35 14 52 45 . 7 109 10 7 32 Explosive 54 | . . . . . . 21 3 4 1 . 8 . 4 . . 6 . . . . . . . . . . 7 Electromagnetic 127 | . . . . . . . 29 . . . . . . 28 5 7 . 7 4 3 . . 8 4 17 1 14 Robot Hit Streak 28 | . 5 5 . . . 6 13 5 12 . . . 6 8 6 16 . 17 5 28 20 1 6 21 17 3 12 Robot Miss Streak 5 | . 5 1 . . . 1 3 3 5 . . . . 4 . . . 5 2 3 3 1 3 5 3 1 4 Penetration Max 1 | . . . . . . . 1 . . . . . . 1 . . . . . 1 . . . . 1 . 1 Secondary Targets 6 | . . . . . . . . . . . . . . . . . . . . . . . . 5 . . 1 Max Gunslinging Chain 1 | . . . . . . . . . . . . . . . . . . . . . . . . 1 . . 1 Shots Hit Robots 665 | . 21 8 . . . 8 84 5 24 . . . 3 89 1 10 . 25 10 122 64 1 15 79 49 4 43 Core Hits 334 | . 12 4 . . . 19 38 5 17 . . . 6 48 3 19 . 14 6 33 24 1 9 27 15 6 28 Critical Kills 6 | . . . . . . . . . . . . . . 1 . . . . . . 4 1 . . . . . Critical Parts Destroyed 6 | . . . . . . . . . . . . . . 1 . . . . . . 2 . 2 . . . 1 Critical Strikes 48 | . 1 1 . . . . 8 1 . . . . . 10 . . . . . 14 9 1 2 . . . 1 Burn 8 | . 1 1 . . . . 2 . . . . . . . . . . . . 4 . . . . . . . Meltdown 1 | . . . . . . . . . . . . . . 1 . . . . . . . . . . . . . Destroy 11 | . . . . . . . . . . . . . . 1 . . . . . . 6 1 2 . . . 1 Blast 28 | . . . . . . . 6 1 . . . . . 8 . . . . . 10 3 . . . . . . Melee Attacks . | . . . . . . . . . . . . . . . . . . . . . . . . . . . . Impact . | . . . . . . . . . . . . . . . . . . . . . . . . . . . . Slashing . | . . . . . . . . . . . . . . . . . . . . . . . . . . . . Piercing . | . . . . . . . . . . . . . . . . . . . . . . . . . . . . Sneak Attacks . | . . . . . . . . . . . . . . . . . . . . . . . . . . . . Combat Hostiles . | . . . . . . . . . . . . . . . . . . . . . . . . . . . . Follow-up Attacks . | . . . . . . . . . . . . . . . . . . . . . . . . . . . . Damage Inflicted 22976 | . 253 106 . . . 1020 2345 226 835 . 62 . 374 3088 239 1001 . 703 233 3025 2179 17 312 2379 1334 416 2829 Guns 7173 | . 253 106 . . . . 676 . . . . . . 176 . . . 202 233 652 486 . 261 2314 448 52 1314 Cannons 8385 | . . . . . . . 1105 104 703 . . . . 1946 . . . 430 . 2336 1693 17 51 . . . . Explosions 7293 | . . . . . . 1020 564 122 131 . 62 . 374 966 239 991 . 71 . . . . . 65 879 345 1464 Melee . | . . . . . . . . . . . . . . . . . . . . . . . . . . . . Ramming 125 | . . . . . . . . . 1 . . . . . . 10 . . . 37 . . . . 7 19 51 Kinetic 6743 | . . . . . . . 1057 83 555 . . . . 1312 . . . 202 . 1955 954 17 129 . 88 . 391 Thermal 8718 | . 253 106 . . . . 500 21 128 . . . . 866 66 . . 324 170 1006 1225 . 37 2332 737 212 735 Explosive 4204 | . . . . . . 1020 468 122 131 . 62 . 374 . . 563 . . . . . . . . . . 1464 Electromagnetic 3166 | . . . . . . . 320 . . . . . . 910 173 428 . 177 63 27 . . 146 47 502 185 188 Impact 20 | . . . . . . . . . 20 . . . . . . . . . . . . . . . . . . Slashing . | . . . . . . . . . . . . . . . . . . . . . . . . . . . . Piercing . | . . . . . . . . . . . . . . . . . . . . . . . . . . . . Highest Corruption 22 | . . . . 3 . . . . 11 11 11 11 11 8 6 3 1 22 . 3 3 3 3 5 2 2 11 Average Corruption 5 | . . . . 3 . . . . 11 11 11 11 11 4 5 1 1 5 . 1 3 3 3 3 1 2 3 Corruption Purged 12 | . . . . . . . . . . . . . . 7 3 2 . . . . . . . . . . . Corruption Blocked . | . . . . . . . . . . . . . . . . . . . . . . . . . . . . Effects 198 | . . . . . . . . . 18 6 26 7 12 35 8 6 1 19 . 3 11 1 5 26 3 1 10 Message Errors 58 | . . . . . . . . . 7 2 11 1 2 11 2 1 . 6 . . 2 1 . 6 1 1 4 Matter Fused 45 | . . . . . . . . . 2 1 7 1 4 7 1 3 . 3 . . 4 . 1 9 . . 2 Heat Flow Errors 17 | . . . . . . . . . 1 1 2 . . 3 2 1 . 1 . . 2 . . 3 . . 1 Energy Discharges 22 | . . . . . . . . . 1 1 2 3 2 4 . . . 5 . . . . 1 2 . . 1 Parts Rejected 5 | . . . . . . . . . . . . . . 1 . . . . . 1 1 . . 1 1 . . Parts Fused 3 | . . . . . . . . . . . . . . . . . . . . . . . 1 2 . . . Data Loss (minor) 27 | . . . . . . . . . 3 1 2 2 2 2 2 . 1 2 . 2 2 . 2 2 1 . 1 Data Loss (major) 8 | . . . . . . . . . 1 . 1 . . 2 . 1 . 2 . . . . . 1 . . . Misfires 4 | . . . . . . . . . . . . . 1 3 . . . . . . . . . . . . . Alerts 6 | . . . . . . . . . 2 . . . 1 2 1 . . . . . . . . . . . . Misdirections 1 | . . . . . . . . . . . . . . . . . . . . . . . . . . . 1 Weapon Failures 2 | . . . . . . . . . 1 . 1 . . . . . . . . . . . . . . . . Overload Shots 43 | . . . . . . . . . . . . . . . . . . 1 . . 7 . 2 22 2 5 4 Effects 2 | . . . . . . . . . . . . . . . . . . . . . . . . 2 . . . Heat Surge 1 | . . . . . . . . . . . . . . . . . . . . . . . . 1 . . . Short Circuit 1 | . . . . . . . . . . . . . . . . . . . . . . . . 1 . . . Overflow Damage 570 | . . . . . . 24 87 46 16 . 42 . . 109 . 10 . 4 . 133 13 . . . . 24 62 Projectiles 269 | . . . . . . . 12 . 16 . . . . 91 . . . 4 . 133 13 . . . . . . Explosions 295 | . . . . . . 24 75 46 . . 42 . . 18 . 4 . . . . . . . . . 24 62 Melee 6 | . . . . . . . . . . . . . . . . 6 . . . . . . . . . . . Knockbacks 40 | . . . . . . . 12 1 3 . . . . 12 . . . . . 10 1 . . . . . 1 Impact 1 | . . . . . . . . . . . . . . . . . . . . . . . . . . . 1 Kinetic 36 | . . . . . . . 11 1 2 . . . . 11 . . . . . 10 1 . . . . . . Secondary 3 | . . . . . . . 1 . 1 . . . . 1 . . . . . . . . . . . . . Self-Inflicted Damage 1313 | . . . . . . 171 201 88 . . . . 54 269 . 37 . . . . . . . . 63 108 322 Shots 41 | . . . . . . 8 3 2 . . . . 1 12 . 3 . . . . . . . . 4 3 5 Rammed 10 | . . . . . . . . . . . . . . . . . . . . . . . . . . . 10 Targets Rammed 25 | . 1 . . . . . . . 1 . . . . . . 1 . . . 1 . . . . 1 6 14 Kicked 15 | . 1 . . . . . . . 1 . . . . . . 1 . . . 1 . . . . 1 6 4 Crushed . | . . . . . . . . . . . . . . . . . . . . . . . . . . . . Highest Temperature 565 | . 222 100 . . . 18 330 72 281 104 188 . . 415 215 269 . 330 143 144 240 . . 403 384 565 305 Average Temperature 100 | . 83 42 . . . 5 62 40 117 62 79 . . 89 81 61 . 135 74 63 127 . . 162 99 250 84 Received Heat Transfer 4513 | . 54 . . 48 . 153 531 . 498 9 45 . 18 615 90 73 . 623 9 839 54 . 69 177 145 140 323 Effects 13 | . . . . . . . . . 3 . . . . 1 . . . 1 . . . . . 3 . 5 . Energy Bleed 5 | . . . . . . . . . . . . . . 1 . . . 1 . . . . . 1 . 2 . Interference 6 | . . . . . . . . . 3 . . . . . . . . . . . . . . 2 . 1 . Damage (major) 2 | . . . . . . . . . . . . . . . . . . . . . . . . . . 2 . Siege Activations 1 | . . . . . . . . . . . . . . . . . . . . . 1 . . . . . . Total Turns 35 | . . . . . . . . . . . . . . . . . . . . . 35 . . . . . . Longest Duration 35 | . . . . . . . . . . . . . . . . . . . . . 35 . . . . . . Martial Activations . | . . . . . . . . . . . . . . . . . . . . . . . . . . . . Shielding Activations . | . . . . . . . . . . . . . . . . . . . . . . . . . . . . Robots Disrupted 1 | . . . . . . . . . . . . . . . . 1 . . . . . . . . . . . Combat Hostiles 1 | . . . . . . . . . . . . . . . . 1 . . . . . . . . . . . Robots Corrupted 7 | . . . . . . . . . . . . . . 2 1 1 . 1 . . . . . . 2 . . Combat Hostiles 6 | . . . . . . . . . . . . . . 2 1 . . 1 . . . . . . 2 . . Parts Fried 15 | . . . . . . . 3 . . . . . . 3 2 . . . . . . . . . 6 1 . Impact Corruptions 1 | . . . . . . . . . . . . . . . . 1 . . . . . . . . . . . Robots Melted 1 | . . . . . . . . . . . . . . 1 . . . . . . . . . . . . . Combat Hostiles 1 | . . . . . . . . . . . . . . 1 . . . . . . . . . . . . . Parts Melted 17 | . 3 . . . . . . . . . . . . 1 . . . 1 1 . 1 . . 8 2 . . Heat Transferred 11622 | . 732 371 . . . . 1099 37 203 . . . . 1049 50 . . 407 296 1869 1574 . 37 2263 647 174 814 Parts Sabotaged . | . . . . . . . . . . . . . . . . . . . . . . . . . . . . Parts Stolen . | . . . . . . . . . . . . . . . . . . . . . . . . . . . . Parts Stripped . | . . . . . . . . . . . . . . . . . . . . . . . . . . . . Power Chain Reactions 11 | . . . . . . . 2 . . . . . . 3 1 2 . . . . . . . 1 1 1 . Alert | -11 -10 -10 -10 -9 -8 -8 -8 -8 -7 -7 -7 -7 -6 -6 -6 -6 -6 -5 -5 -5 -5 -5 -5 -5 -4 -3 -3 ------- Run | Yrd Mat Min Exi Min Mat Gar Mat Gar Fac Low Low Zio Pro Fac Low Low Dat Pro Fac Ext Cet Arc Hub Gar Fac Res Tes Maximum Alert Level 5 | . . . . . . 2 1 1 . . . . . 2 . . . . . . . . . 3 5 4 2 Low Security (%) 64 | 100 100 100 . 100 100 47 72 64 100 . . . . 77 . . . . 100 100 100 100 100 8 . . . Level 1 10 | . . . . . . 29 27 35 . . . . . 19 . . . . . . . . . 18 . . 20 Level 2 15 | . . . . . . 22 . . . . . . . 3 . . . . . . . . . 57 38 . 79 Level 3 4 | . . . . . . . . . . . . . . . . . . . . . . . . 14 1 93 . Level 4 1 | . . . . . . . . . . . . . . . . . . . . . . . . . 24 6 . Level 5 . | . . . . . . . . . . . . . . . . . . . . . . . . . 1 . . High Security 2 | . . . . . . . . . . . . . . . . . . . . . . . . . 34 . . Max Security . | . . . . . . . . . . . . . . . . . . . . . . . . . . . . Peak Influence 1875 | . 75 40 . 50 24 538 273 238 157 . . . . 436 . . . . 130 113 78 27 133 930 1875 1100 587 Initial 1100 | . . . . . 19 9 254 165 124 . . . . 31 . . . . . 39 53 7 9 86 487 1100 587 Average 259 | . 20 9 . 15 19 213 108 192 80 . . . . 101 . . . . 62 37 18 7 76 520 1192 1026 472 Influence Increases 8927 | . 160 40 . 60 15 594 666 113 403 . 50 . 81 1069 50 230 . 135 262 802 238 37 224 954 1992 235 517 Destroy 0b10 Robot/C 4240 | . 120 40 . . . 240 260 80 160 . . . 60 600 40 200 . 100 100 520 160 . 140 440 720 80 180 Destroy 0b10 Robot/NC 225 | . 10 . . . . 5 50 . . . 5 . . 25 . . . . . 30 5 5 . 5 65 . 20 Destroy Leader 642 | . 30 . . . . 10 84 10 20 . . . 10 140 10 30 . 20 10 44 . . 30 30 134 10 20 Allied During Kill 822 | . . . . . . . . . . . . . 11 7 . . . . . 112 3 . 3 113 573 . . Successful Hack 103 | . . . . . . 28 3 . 18 . . . . 5 . . . . . 3 . . . . 4 24 18 Disable Machine 420 | . . . . . . . 15 . 15 . . . . 75 . . . . 30 45 30 30 15 . 105 30 30 Anti-Garrison Action 450 | . . . . . . . . . . . . . . . . . . . . . . . . 300 150 . . Destroy Structure 810 | . . . . . . 161 44 23 10 . . . . 52 . . . . 2 48 40 2 6 66 226 16 114 Partial Spotted 75 | . . . . . 15 . 45 . . . . . . . . . . . . . . . . . . . 15 Lose Combat Pursuer 1140 | . . . . 60 . 150 165 . 180 . 45 . . 165 . . . 15 120 . . . 30 . 15 75 120 Influence Decreases 8570 | . 160 40 . 10 51 85 935 129 516 125 50 . 30 925 233 242 . 135 180 787 317 28 128 147 1067 1172 1078 Entered New Map 2587 | . . . . . 31 5 269 89 114 47 . . . 20 73 3 . . . 43 44 11 18 37 443 882 458 Time Decay 3285 | . 150 30 . 10 20 . 302 . 282 78 50 . 30 435 160 219 . 120 110 406 152 17 80 . 214 150 270 Lost Part 1212 | . 10 10 . . . 80 80 40 110 . . . . 150 . 20 . . 70 162 50 . 30 50 50 100 200 Lost Ally 752 | . . . . . . . . . 10 . . . . 20 . . . 15 . 176 71 . . 60 360 40 . Purge Threat 734 | . . . . . . . 284 . . . . . . 300 . . . . . . . . . . . . 150 Squads Dispatched 47 | . 2 . . . 1 . 2 . 4 . . . . 11 . . . . 2 1 . . 1 . 17 1 5 Investigation 10 | . 1 . . . 1 . . . 1 . . . . 4 . . . . 1 1 . . . . 1 . . Extermination 7 | . . . . . . . . . 1 . . . . 4 . . . . 1 . . . . . . . 1 Reinforcement 15 | . 1 . . . . . 2 . . . . . . 3 . . . . . . . . 1 . 5 . 3 Assault 14 | . . . . . . . . . 2 . . . . . . . . . . . . . . . 10 1 1 Garrison 1 | . . . . . . . . . . . . . . . . . . . . . . . . . 1 . . Intercept . | . . . . . . . . . . . . . . . . . . . . . . . . . . . . Searches Triggered . | . . . . . . . . . . . . . . . . . . . . . . . . . . . . Data Miner Redirects 1 | . . . . . . . . . . . . . . . . . . . 1 . . . . . . . . Construction Impeded 4 | . . . . . . . . . . . . . . 2 . . . . . . . . . . 2 . . Haulers Reinforced 2 | . . . . . . . . . . . . . . . . . . . . . . . . . 1 . 1 Active Scanning Responses . | . . . . . . . . . . . . . . . . . . . . . . . . . . . . Cargo Convoy Interrupts . | . . . . . . . . . . . . . . . . . . . . . . . . . . . . Stealth | -11 -10 -10 -10 -9 -8 -8 -8 -8 -7 -7 -7 -7 -6 -6 -6 -6 -6 -5 -5 -5 -5 -5 -5 -5 -4 -3 -3 --------- Run | Yrd Mat Min Exi Min Mat Gar Mat Gar Fac Low Low Zio Pro Fac Low Low Dat Pro Fac Ext Cet Arc Hub Gar Fac Res Tes Distress Signals 15 | . 2 . . . . . 3 . 1 . . . . . . . . . 1 . 2 . . . 3 . 3 Communications Jammed 3 | . . . . . . . . . . . . . . . . . . . . . . . . . . 1 2 Distress Signals 3 | . . . . . . . . . . . . . . . . . . . . . . . . . . 1 2 Times Spotted 390 | . 15 5 . 5 3 27 31 4 33 3 5 . 3 43 3 9 . 6 15 32 9 1 9 25 54 14 36 Peak Tracking Total 14 | . 3 2 . 5 2 8 13 2 7 4 3 . 3 6 3 4 . 3 9 6 5 1 5 4 7 7 14 Tactical Retreats 45 | . . . . 2 . 5 7 . 7 1 2 . . 6 . . . 1 3 . . . 2 . 1 5 3 Traps | -11 -10 -10 -10 -9 -8 -8 -8 -8 -7 -7 -7 -7 -6 -6 -6 -6 -6 -5 -5 -5 -5 -5 -5 -5 -4 -3 -3 ------- Run | Yrd Mat Min Exi Min Mat Gar Mat Gar Fac Low Low Zio Pro Fac Low Low Dat Pro Fac Ext Cet Arc Hub Gar Fac Res Tes Traps Triggered 27 | . 2 . . . . 8 . . 2 . . . . 6 . . . . . 2 . . . 3 3 1 . Indirectly . | . . . . . . . . . . . . . . . . . . . . . . . . . . . . Trap Hack Attempts . | . . . . . . . . . . . . . . . . . . . . . . . . . . . . Triggered . | . . . . . . . . . . . . . . . . . . . . . . . . . . . . Disarmed . | . . . . . . . . . . . . . . . . . . . . . . . . . . . . Reprogrammed . | . . . . . . . . . . . . . . . . . . . . . . . . . . . . Reused . | . . . . . . . . . . . . . . . . . . . . . . . . . . . . Traps Extracted . | . . . . . . . . . . . . . . . . . . . . . . . . . . . . Installed . | . . . . . . . . . . . . . . . . . . . . . . . . . . . . Triggered . | . . . . . . . . . . . . . . . . . . . . . . . . . . . . Machines | -11 -10 -10 -10 -9 -8 -8 -8 -8 -7 -7 -7 -7 -6 -6 -6 -6 -6 -5 -5 -5 -5 -5 -5 -5 -4 -3 -3 ---------- Run | Yrd Mat Min Exi Min Mat Gar Mat Gar Fac Low Low Zio Pro Fac Low Low Dat Pro Fac Ext Cet Arc Hub Gar Fac Res Tes Machines Disabled 38 | . . . . . . . 1 . 1 . . . . 5 . . . . 2 5 2 2 1 7 8 2 2 Max in Single Turn 2 | . . . . . . . 1 . 1 . . . . 2 . . . . 1 1 1 1 1 1 2 2 1 Garrison Access 2 | . . . . . . . . . 1 . . . . . . . . . . . . . . . 1 . . Garrison Relay 4 | . . . . . . . . . . . . . . . . . . . . . . . . 4 . . . Energy Cycler 1 | . . . . . . . . . . . . . . . . . . . . 1 . . . . . . . Machines Repaired . | . . . . . . . . . . . . . . . . . . . . . . . . . . . . Machines Dismantled . | . . . . . . . . . . . . . . . . . . . . . . . . . . . . Machines Sabotaged . | . . . . . . . . . . . . . . . . . . . . . . . . . . . . Overloaded Fab Kills . | . . . . . . . . . . . . . . . . . . . . . . . . . . . . Hacking | -11 -10 -10 -10 -9 -8 -8 -8 -8 -7 -7 -7 -7 -6 -6 -6 -6 -6 -5 -5 -5 -5 -5 -5 -5 -4 -3 -3 --------- Run | Yrd Mat Min Exi Min Mat Gar Mat Gar Fac Low Low Zio Pro Fac Low Low Dat Pro Fac Ext Cet Arc Hub Gar Fac Res Tes Machines Accessed 50 | . 2 . . . 2 3 5 1 3 . 1 1 . 5 . 1 4 1 3 5 1 1 3 1 1 1 5 Terminals 35 | . 2 . . . 1 3 3 1 2 . . . . 4 . . . 1 2 5 1 . 2 1 1 1 5 Fabricators 2 | . . . . . . . . . 1 . . . . 1 . . . . . . . . . . . . . Repair Stations . | . . . . . . . . . . . . . . . . . . . . . . . . . . . . Recycling Units 1 | . . . . . . . 1 . . . . . . . . . . . . . . . . . . . . Scanalyzers . | . . . . . . . . . . . . . . . . . . . . . . . . . . . . Garrison Access 4 | . . . . . 1 . 1 . . . . . . . . . . . 1 . . . 1 . . . . Total Hacks 142 | . 3 . . . 4 6 15 2 6 . 1 3 . 13 . 1 30 1 5 8 1 25 4 2 2 1 9 Successful 87 | . . . . . 1 2 9 . 2 . 1 3 . 3 . 1 30 1 2 1 1 25 1 . 1 1 2 Failed 55 | . 3 . . . 3 4 6 2 4 . . . . 10 . . . . 3 7 . . 3 2 1 . 7 Catastrophic 9 | . 1 . . . 1 1 . . . . . . . 2 . . . . 2 . . . . . . . 2 Database Lockouts . | . . . . . . . . . . . . . . . . . . . . . . . . . . . . Manual 35 | . 1 . . . 3 . 12 . . . . . . 6 . . . . 3 4 . . 3 . 2 . 1 Terminals 70 | . 3 . . . 3 6 12 2 4 . . . . 12 . . . 1 2 8 1 . 2 2 2 1 9 Fabricators 3 | . . . . . . . . . 2 . . . . 1 . . . . . . . . . . . . . Repair Stations . | . . . . . . . . . . . . . . . . . . . . . . . . . . . . Recycling Units 2 | . . . . . . . 2 . . . . . . . . . . . . . . . . . . . . Scanalyzers . | . . . . . . . . . . . . . . . . . . . . . . . . . . . . Garrison Access 7 | . . . . . 1 . 1 . . . . . . . . . . . 3 . . . 2 . . . . Terminal Hacks 75 | . . . . . . 2 3 . 1 . 1 3 . 3 . 1 30 1 1 . 1 25 . . . 1 2 Record 37 | . . . . . . . . . . . . . . . . . 11 1 . . . 25 . . . . . Part Schematic 15 | . . . . . . . . . . . . 3 . . . . 12 . . . . . . . . . . Robot Schematic 4 | . . . . . . . . . . . . . . . . . 4 . . . . . . . . . . Prototype ID Bank 3 | . . . . . . . . . . . . . . . . . 3 . . . . . . . . . . Open Door 4 | . . . . . . . . . . . 1 . . . . 1 . . 1 . 1 . . . . . . Branch Access Points 4 | . . . . . . . 1 . 1 . . . . 1 . . . . . . . . . . . 1 . Emergency Access Points 1 | . . . . . . 1 . . . . . . . . . . . . . . . . . . . . . Terminal Index 1 | . . . . . . . . . . . . . . . . . . . . . . . . . . . 1 Unreport Threat 5 | . . . . . . . 2 . . . . . . 2 . . . . . . . . . . . . 1 Garrison Registry 1 | . . . . . . 1 . . . . . . . . . . . . . . . . . . . . . Fabricator Hacks 1 | . . . . . . . . . 1 . . . . . . . . . . . . . . . . . . Build 1 | . . . . . . . . . 1 . . . . . . . . . . . . . . . . . . Repair Station Hacks . | . . . . . . . . . . . . . . . . . . . . . . . . . . . . Recycling Unit Hacks 2 | . . . . . . . 2 . . . . . . . . . . . . . . . . . . . . Process 1 | . . . . . . . 1 . . . . . . . . . . . . . . . . . . . . Retrieve Matter 1 | . . . . . . . 1 . . . . . . . . . . . . . . . . . . . . Scanalyzer . | . . . . . . . . . . . . . . . . . . . . . . . . . . . . Garrison Access Hacks 4 | . . . . . 1 . 1 . . . . . . . . . . . 1 . . . 1 . . . . Unlock Access 4 | . . . . . 1 . 1 . . . . . . . . . . . 1 . . . 1 . . . . Unauthorized Hacks 5 | . . . . . . . 3 . . . . . . . . . . . . 1 . . . . 1 . . Terminals 5 | . . . . . . . 3 . . . . . . . . . . . . 1 . . . . 1 . . Botnet 5 | . . . . . . . 3 . . . . . . . . . . . . 1 . . . . 1 . . Fabricators . | . . . . . . . . . . . . . . . . . . . . . . . . . . . . Repair Stations . | . . . . . . . . . . . . . . . . . . . . . . . . . . . . Recycling Units . | . . . . . . . . . . . . . . . . . . . . . . . . . . . . Scanalyzers . | . . . . . . . . . . . . . . . . . . . . . . . . . . . . Garrison Access . | . . . . . . . . . . . . . . . . . . . . . . . . . . . . Data Cores Recovered . | . . . . . . . . . . . . . . . . . . . . . . . . . . . . Used . | . . . . . . . . . . . . . . . . . . . . . . . . . . . . Hacking Detections 34 | . 2 . . . 1 3 2 1 3 . . . . 5 . . . . 2 4 . . 3 1 1 1 5 Full Trace Events 5 | . 1 . . . 1 . . . 1 . . . . 1 . . . . 1 . . . . . . . . Feedback Events . | . . . . . . . . . . . . . . . . . . . . . . . . . . . . Feedback Blocked . | . . . . . . . . . . . . . . . . . . . . . . . . . . . . Robot Schematics Acquired 6 | . . . . . . . . . . . . . . . . . 4 . . . . . . . . . 2 Robots Built 1 | . . . . . . . . . 1 . . . . . . . . . . . . . . . . . . Authchips . | . . . . . . . . . . . . . . . . . . . . . . . . . . . . Time 58 | . . . . . . . . . 58 . . . . . . . . . . . . . . . . . . Total Robot Build Rating 3 | . . . . . . . . . 3 . . . . . . . . . . . . . . . . . . Part Schematics Acquired 15 | . . . . . . . . . . . . 3 . . . . 12 . . . . . . . . . . Parts Built . | . . . . . . . . . . . . . . . . . . . . . . . . . . . . Authchips . | . . . . . . . . . . . . . . . . . . . . . . . . . . . . Time . | . . . . . . . . . . . . . . . . . . . . . . . . . . . . Total Part Build Rating . | . . . . . . . . . . . . . . . . . . . . . . . . . . . . Parts Repaired . | . . . . . . . . . . . . . . . . . . . . . . . . . . . . Time . | . . . . . . . . . . . . . . . . . . . . . . . . . . . . Parts Recycled . | . . . . . . . . . . . . . . . . . . . . . . . . . . . . Recycled Matter . | . . . . . . . . . . . . . . . . . . . . . . . . . . . . Retrieved Matter . | . . . . . . . . . . . . . . . . . . . . . . . . . . . . Retrieved Components . | . . . . . . . . . . . . . . . . . . . . . . . . . . . . Parts Scanalyzed . | . . . . . . . . . . . . . . . . . . . . . . . . . . . . Part Schematics Acquired . | . . . . . . . . . . . . . . . . . . . . . . . . . . . . Parts Damaged . | . . . . . . . . . . . . . . . . . . . . . . . . . . . . Bothacking | -11 -10 -10 -10 -9 -8 -8 -8 -8 -7 -7 -7 -7 -6 -6 -6 -6 -6 -5 -5 -5 -5 -5 -5 -5 -4 -3 -3 ------------ Run | Yrd Mat Min Exi Min Mat Gar Mat Gar Fac Low Low Zio Pro Fac Low Low Dat Pro Fac Ext Cet Arc Hub Gar Fac Res Tes Used RIF Installer 3 | . . . . . . 1 . 1 . . . . . . . . . . . . . . . 1 . . . Coupler Efficiency 1 | . . . . . . . . . . . . . . . . . . . . . . . . 1 . . . Hotswap 1 | . . . . . . . . 1 . . . . . . . . . . . . . . . . . . . Robots Hacked 25 | . . . . . . . . . . . . . . . . . . . . . . . 1 5 18 1 . Non-combat . | . . . . . . . . . . . . . . . . . . . . . . . . . . . . Combat 25 | . . . . . . . . . . . . . . . . . . . . . . . 1 5 18 1 . Robot Hacks Applied 25 | . . . . . . . . . . . . . . . . . . . . . . . 1 5 18 1 . reboot_system 1 | . . . . . . . . . . . . . . . . . . . . . . . . . 1 . . overwrite_iff 5 | . . . . . . . . . . . . . . . . . . . . . . . . . 4 1 . formatsys_high 19 | . . . . . . . . . . . . . . . . . . . . . . . 1 5 13 . . Relay Couplers Released 22 | . . . . . . . . . 2 . . . . . . . . . . . . . . 17 3 . . Machine Destruction 22 | . . . . . . . . . 2 . . . . . . . . . . . . . . 17 3 . . Attached 9 | . . . . . . . . . . . . . . . . . . . . . . . 1 5 3 . . Fabnet Peak Effective % . | . . . . . . . . . . . . . . . . . . . . . . . . . . . . Robots Rewired 22 | . . . . . . . . . . . . . . . . . . . . 17 . . . 5 . . . Allies Hacked . | . . . . . . . . . . . . . . . . . . . . . . . . . . . . Hacks Repelled . | . . . . . . . . . . . . . . . . . . . . . . . . . . . . Allies | -11 -10 -10 -10 -9 -8 -8 -8 -8 -7 -7 -7 -7 -6 -6 -6 -6 -6 -5 -5 -5 -5 -5 -5 -5 -4 -3 -3 -------- Run | Yrd Mat Min Exi Min Mat Gar Mat Gar Fac Low Low Zio Pro Fac Low Low Dat Pro Fac Ext Cet Arc Hub Gar Fac Res Tes Total Allies 52 | . . 1 . . . . . . 1 . . 2 . . . . . 1 . 18 . . 1 10 17 1 . Largest Group 9 | . . 1 . . . . . . 1 . . 2 2 2 . . . 1 . 7 5 . 1 7 9 3 . Highest-Rated Group 730 | . . 31 . . . . . . 23 . . 76 76 76 . . . 96 . 194 173 . 68 458 730 147 . Highest-Rated Ally 142 | . . 31 . . . . . . 23 . . 51 51 51 . . . 96 . 39 39 . 68 116 142 49 . Total Orders 16 | . . . . . . . . . . . . . . . . . . . . . . . . 11 5 . . STAY 7 | . . . . . . . . . . . . . . . . . . . . . . . . 5 2 . . FOLLOW 9 | . . . . . . . . . . . . . . . . . . . . . . . . 6 3 . . Ally Attacks 442 | . . . . . . . . . . . . . 3 5 . . . 9 . 115 12 . 1 60 232 5 . Total Damage 12925 | . . . . . . . . . . . . . 94 109 . . . 323 . 2197 219 . 111 1759 7878 235 . Kills 66 | . . . . . . . . . . . . . 1 . . . . . . 16 2 . . 8 39 . . Allies Corrupted 1 | . . . . . . . . . . . . . . . . . . . . . . . . . 1 . . Allies Melted 1 | . . . . . . . . . . . . . . . . . . . . . . . . . 1 . . Intel | -11 -10 -10 -10 -9 -8 -8 -8 -8 -7 -7 -7 -7 -6 -6 -6 -6 -6 -5 -5 -5 -5 -5 -5 -5 -4 -3 -3 ------- Run | Yrd Mat Min Exi Min Mat Gar Mat Gar Fac Low Low Zio Pro Fac Low Low Dat Pro Fac Ext Cet Arc Hub Gar Fac Res Tes Active Infowar (turns) 4853 | . . . . . . . . . 317 167 662 188 320 268 . 712 113 1169 234 143 . . . . . 136 424 Sensors 1788 | . . . . . . . . . 192 158 662 188 320 268 . . . . . . . . . . . . . Terrain 2971 | . . . . . . . . . 317 167 116 . . . . 712 113 1169 234 143 . . . . . . . Jamming 560 | . . . . . . . . . . . . . . . . . . . . . . . . . . 136 424 Robot Analysis Total . | . . . . . . . . . . . . . . . . . . . . . . . . . . . . Derelict Logs Recovered 6 | . . . . 1 . . . . . . 2 . 1 . 1 . . 1 . . . . . . . . . Drone Launches . | . . . . . . . . . . . . . . . . . . . . . . . . . . . . Drone Recoveries . | . . . . . . . . . . . . . . . . . . . . . . . . . . . . Exploration | -11 -10 -10 -10 -9 -8 -8 -8 -8 -7 -7 -7 -7 -6 -6 -6 -6 -6 -5 -5 -5 -5 -5 -5 -5 -4 -3 -3 ------------- Run | Yrd Mat Min Exi Min Mat Gar Mat Gar Fac Low Low Zio Pro Fac Low Low Dat Pro Fac Ext Cet Arc Hub Gar Fac Res Tes Turns Passed 14404 | 47 467 160 323 75 40 334 742 267 661 167 662 188 320 1806 327 985 113 1249 346 1556 485 72 169 1260 671 315 597 Spaces Moved 11177 | 37 319 124 404 91 74 738 791 206 676 309 1105 321 232 861 254 478 90 413 619 891 230 56 83 786 430 237 322 Core 1097 | 4 . . . . . . 1 . 31 . 724 . . . . . . 142 113 . . . . . . . 82 Treads 283 | . . . . . . . . . . . . . . . . . . . . 105 9 . . . . . 169 Legs 4203 | 33 319 39 . . . . . . 16 . 4 . . 160 254 478 90 271 . 709 221 56 83 786 430 237 17 Wheels 1123 | . . . . . . . 74 206 151 . . . . 692 . . . . . . . . . . . . . Hover 1120 | . . 85 404 91 5 . 352 . 124 . . . . . . . . . 5 . . . . . . . 54 Flight 3351 | . . . . . 69 738 364 . 354 309 377 321 232 9 . . . . 501 77 . . . . . . . Fastest Speed 26 | 50 120 80 80 80 26 26 26 90 32 52 50 55 55 75 122 122 122 50 29 69 120 120 115 110 108 105 50 Average Speed 89 | 112 120 92 80 80 30 26 49 100 70 52 51 55 116 121 122 137 122 146 40 123 128 120 121 113 115 111 118 Slowest Speed 250 | 120 120 120 80 90 90 29 200 115 250 52 130 55 235 145 122 193 122 195 200 240 240 120 190 120 120 186 190 Overloaded Moves . | . . . . . . . . . . . . . . . . . . . . . . . . . . . . Propulsion Burnouts . | . . . . . . . . . . . . . . . . . . . . . . . . . . . . Robots Hopped 25 | . . . . . 2 6 1 . 6 2 2 . . . . . . . 5 1 . . . . . . . Potential Cave-ins 6 | . . . . . . . 1 . . . . . . . . . . 2 . . . . . . . 3 . Cave-ins Triggered 1 | . . . . . . . . . 1 . . . . . . . . . . . . . . . . . . Exploration Rate (%) 45 | 3 54 39 84 37 5 87 62 28 22 58 93 14 37 26 44 59 68 58 17 84 75 72 13 67 14 15 48 Regions Visited 27 Branch Regions 16 Pre-discovered Areas 4 | . . 1 . . . . . . . . . 1 1 . . . 1 . . . . . . . . . . Known Exits Taken 10 | . . . . 1 1 . 1 . 1 . . . . 1 1 . . 1 . . . . 1 . 1 1 . Unknown Exits Taken 14 | 1 1 1 1 . . . . . . 1 1 1 1 . . 1 1 . 1 1 1 1 . . . . . Scrap Searched 19 | . . . . 1 . . . . . . 3 1 2 . 2 10 . . . . . . . . . . . Spaces Dug 258 | . . . . . . 30 . 22 4 . 148 . 29 . . 3 . 5 1 . . 1 2 4 . 7 2 Terrain Destroyed 825 | . . . . . . 121 59 32 8 . 148 . 58 59 13 90 . 9 1 17 15 1 3 17 16 10 148 Melee . | . . . . . . . . . . . . . . . . . . . . . . . . . . . . Projectile 122 | . . . . . . . 19 . 8 . . . . 16 . 3 . 9 1 17 15 1 3 13 . 8 9 AOE 703 | . . . . . . 121 40 32 . . 148 . 58 43 13 87 . . . . . . . 4 16 2 139 Terrain Rammed . | . . . . . . . . . . . . . . . . . . . . . . . . . . . . Walls Destroyed . | . . . . . . . . . . . . . . . . . . . . . . . . . . . . Machines Disabled . | . . . . . . . . . . . . . . . . . . . . . . . . . . . . Actions | -11 -10 -10 -10 -9 -8 -8 -8 -8 -7 -7 -7 -7 -6 -6 -6 -6 -6 -5 -5 -5 -5 -5 -5 -5 -4 -3 -3 --------- Run | Yrd Mat Min Exi Min Mat Gar Mat Gar Fac Low Low Zio Pro Fac Low Low Dat Pro Fac Ext Cet Arc Hub Gar Fac Res Tes Total 14491 | 40 361 155 403 92 87 844 1020 252 790 314 1186 331 277 1450 265 788 94 1003 686 1210 339 57 122 1033 557 270 465 Wait 1743 | . 11 18 . . 1 1 112 31 31 1 64 10 40 410 1 274 . 546 14 10 18 . 4 68 13 2 63 Move 11100 | 36 318 123 403 90 69 725 788 204 664 304 1100 320 231 860 253 477 89 412 608 888 229 55 82 784 429 237 322 Hop 23 | . . . . . 2 5 1 . 5 2 2 . . . . . . . 5 1 . . . . . . . Pick Up 143 | . 5 1 . . 4 3 5 1 5 1 1 . . 31 2 6 2 . 6 35 9 . 1 13 8 2 2 Fast Attach 167 | 4 3 3 . 1 6 1 22 2 18 1 1 1 2 17 1 3 . 1 16 25 10 . . 5 7 5 12 Attach 115 | . . . . 1 2 3 3 1 8 . 4 . 1 19 1 3 . 8 6 19 9 . 4 6 8 5 4 Detach 32 | . . . . . . . . . 6 1 4 . . 5 . 1 . 1 5 3 2 . . 1 1 1 1 Swap 92 | . 1 . . . . . 4 3 1 . . . . 10 . 1 . 5 . 21 6 . 9 6 22 1 2 Drop 129 | . 1 2 . . 3 . 13 . 6 4 1 . . 6 2 7 3 1 7 30 13 . 3 10 9 2 6 Fire 689 | . 21 8 . . . 21 72 10 45 . 9 . 3 92 5 15 . 29 19 93 43 2 19 75 59 10 39 Melee . | . . . . . . . . . . . . . . . . . . . . . . . . . . . . Ram 9 | . . . . . . . . . . . . . . . . . . . . . . . . . . . 9 Kick 14 | . 1 . . . . . . . 1 . . . . . . 1 . . . 1 . . . . 1 5 4 Crush 1 | . . . . . . . . . . . . . . . . . . . . . . . . . . . 1 Escape Stasis 91 | . . . . . . 85 . . . . . . . . . . . . . . . . . 6 . . . Rewire 143 | . . . . . . . . . . . . . . . . . . . . 84 . . . 59 . . . Trap . | . . . . . . . . . . . . . . . . . . . . . . . . . . . . Miscellaneous . | . . . . . . . . . . . . . . . . . . . . . . . . . . . . Route ------- -11/Scrapyard -10/Materials (discovered 2 exits: [*Mat] / [*Min]) -10/Mines (discovered 2 exits: [*Mat] / [*Exi]) -10/Exiles (discovered 2 exits: [*Min x2]) -9/Mines -8/Materials -8/Garrison (discovered 4 exits: *Mat x4) -8/Materials (discovered 4 exits: *Fac x3 / Gar) -8/Garrison -7/Factory (discovered 4 exits: *Fac / *Sto / *Low x2) -7/Lower Caves -7/Lower Caves (discovered 2 exits: *Fac / *Zio) -7/Zion -6/Proximity Caves -6/Factory (discovered 4 exits: *Fac x2 / *Low x2) -6/Lower Caves -6/Lower Caves (discovered 2 exits: *Fac / *Dat) -6/Data Miner -5/Proximity Caves -5/Factory (discovered 2 exits: *Ext / Gar) -5/Extension (discovered 3 exits: *Fac x2 / *Cet) -5/Cetus (discovered 2 exits: *Fac / *Arc) -5/Archives -5/Hub_04(d) -5/Garrison (discovered 2 exits: *Fac x2) -4/Factory -3/Research (discovered 3 exits: Arm / *Tes x2) -3/Testing History --------- Turn | Location | Event 7 | -11/Scrapyard | Discovered new exit (range 16) 48 | -11/Scrapyard | Entered Materials 49 | -10/Materials | Met a group of wandering Federalists 122 | -10/Materials | Lost 4 allies 256 | -10/Materials | Discovered new exit (range 9) 326 | -10/Materials | Build established: Mutant 333 | -10/Materials | Discovered new exit (range 16) 515 | -10/Materials | Entered Mines 516 | -10/Mines | Assembled infested the area 522 | -10/Mines | Escorted by a lone wolf Derelict 542 | -10/Mines | Learned location of Storage (-7) 542 | -10/Mines | Met 8R-AWN 587 | -10/Mines | Core integrity fell below 50% 619 | -10/Mines | Lost 3 parts (1p1n1w) 642 | -10/Mines | Found a Scrap Suit stashed away for nefarious purposes 650 | -10/Mines | Discovered new exit (range 12) 668 | -10/Mines | Discovered new exit (range 5) 675 | -10/Mines | Entered Exiles 695 | -10/Exiles | Welcomed by 8R-AWN 708 | -10/Exiles | Met EX-HEX 732 | -10/Exiles | Met EX-BIN 760 | -10/Exiles | Met EX-DEC 789 | -10/Exiles | Discovered new exit (range 10) 859 | -10/Exiles | Visited The Gauntlet 988 | -10/Exiles | Discovered new exit (range 15) 998 | -10/Exiles | Entered Mines 1044 | -9/Mines | Identified exit to Materials 1055 | -9/Mines | Lost 3 parts (1p2w) 1062 | -9/Mines | Received a Rocket Launcher from a helpful Derelict 1073 | -9/Mines | Entered Materials 1073 | -8/Materials | Evolved 4 slots: Propulsion x2, Utility x2 1112 | -8/Materials | Identified exit to Garrison 1113 | -8/Materials | Entered Garrison 1162 | -8/Garrison | Discovered new exit (range 10) 1177 | -8/Garrison | Triggered checkpoint 1225 | -8/Garrison | Discovered new exit (range 8) 1245 | -8/Garrison | Triggered checkpoint 1247 | -8/Garrison | Triggered checkpoint 1254 | -8/Garrison | Discovered new exit (range 5) 1259 | -8/Garrison | Triggered checkpoint 1277 | -8/Garrison | Triggered checkpoint 1297 | -8/Garrison | Discovered new exit (range 9) 1303 | -8/Garrison | Destroyed 7 combat bots 1379 | -8/Garrison | Spotted B-75 Beast 1382 | -8/Garrison | Triggered checkpoint 1383 | -8/Garrison | Build established: Sprinter 1386 | -8/Garrison | Lost 3 parts (1p1n1u) 1395 | -8/Garrison | Discovered new exit (range 78) 1395 | -8/Garrison | Discovered new exit (range 69) 1395 | -8/Garrison | Discovered new exit (range 88) 1395 | -8/Garrison | Discovered new exit (range 50) 1415 | -8/Garrison | Installed Relay Interface Framework 1447 | -8/Garrison | Entered Materials 1459 | -8/Materials | Lost 4 parts (1p2n1w) 1631 | -8/Materials | Discovered new exit (range 13) 1839 | -8/Materials | Discovered new exit (range 8) 1934 | -8/Materials | Discovered new exit (range 12) 2011 | -8/Materials | Build established: Mutant 2021 | -8/Materials | Core integrity fell below 50% 2089 | -8/Materials | Lost 3 parts (1p1n1u) 2189 | -8/Materials | Identified exit to Garrison 2189 | -8/Materials | Entered Garrison 2207 | -8/Garrison | Expanded RIF knowledge: Hotswap 2253 | -8/Garrison | Triggered checkpoint 2363 | -8/Garrison | Core integrity fell below 20% 2409 | -8/Garrison | Lost 4 parts (3n1w) 2439 | -8/Garrison | Discovered new exit (range 13) 2456 | -8/Garrison | Entered Factory 2456 | -7/Factory | Evolved 2 slots: Propulsion x1, Utility x1 2459 | -7/Factory | Build established: Scavenger-Mutant 2576 | -7/Factory | Fabricated M-28 Smith (x1) 2711 | -7/Factory | Crushed by falling debris 2711 | -7/Factory | System corruption reached 10% 2739 | -7/Factory | Core integrity fell below 50% 2794 | -7/Factory | Lost 14 parts (1p7n3u3w) 2982 | -7/Factory | Build established: Mutant 3009 | -7/Factory | Discovered new exit (range 10) 3016 | -7/Factory | Identified exit to Storage 3016 | -7/Factory | Identified exit to Lower Caves 3075 | -7/Factory | Discovered new exit (range 15) 3117 | -7/Factory | Entered Lower Caves 3137 | -7/Lower Caves | Ambushed by wild Derelicts 3220 | -7/Lower Caves | Encountered a Warlord checkpoint 3283 | -7/Lower Caves | Discovered new exit (range 3) 3284 | -7/Lower Caves | Entered another Lower Caves area 3288 | -7/Lower Caves | Discovered new exit (range 9) 3328 | -7/Lower Caves | Learned location of 1 exit from Factory 3334 | -7/Lower Caves | Spotted B-75 Beast 3433 | -7/Lower Caves | Attacked by a delusional Derelict stockpiling parts 3859 | -7/Lower Caves | Learned 12 Factory zone layouts 3923 | -7/Lower Caves | Core integrity fell below 20% 3929 | -7/Lower Caves | Encountered a Warlord checkpoint 3943 | -7/Lower Caves | Discovered new exit (range 8) 3946 | -7/Lower Caves | Entered Zion 4015 | -7/Zion | Gained Derelict followers 4052 | -7/Zion | Learned location of Warlord (-4) 4089 | -7/Zion | Discovered new exit (range 13) 4134 | -7/Zion | Entered Proximity Caves 4134 | -6/Proximity Caves | Accompanied by 2 allies 4441 | -6/Proximity Caves | Discovered new exit (range 5) 4454 | -6/Proximity Caves | Entered Factory 4454 | -6/Factory | Accompanied by 2 allies 4454 | -6/Factory | Evolved 2 slots: Power x1, Utility x1 4455 | -6/Factory | Identified exit to Factory 4456 | -6/Factory | Identified exit to Lower Caves 4483 | -6/Factory | Build established: Hacker-Mutant 4570 | -6/Factory | Discovered exit to Lower Caves (range 16) 4977 | -6/Factory | Lost 3 parts (3u) 5460 | -6/Factory | Build established: Mutant 5833 | -6/Factory | Lost 5 parts (1p1n2u1w) 6260 | -6/Factory | Entered Lower Caves 6289 | -6/Lower Caves | Encountered a Warlord checkpoint 6501 | -6/Lower Caves | Identified exit to Lower Caves 6528 | -6/Lower Caves | Build established: Hacker-Mutant 6587 | -6/Lower Caves | Entered another Lower Caves area 6652 | -6/Lower Caves | Discovered exit to Factory (range 5) 7545 | -6/Lower Caves | Discovered new exit (range 14) 7572 | -6/Lower Caves | Entered Data Miner 7574 | -6/Data Miner | Discovered new exit (range 6) 7597 | -6/Data Miner | Met Data Miner 7617 | -6/Data Miner | Learned location of Section 7 (-2) 7617 | -6/Data Miner | Acquired the access code to Warlord's prototype stash 7638 | -6/Data Miner | Received God Mode back door access code from Data Miner 7685 | -6/Data Miner | Entered Proximity Caves 8431 | -5/Proximity Caves | Attracted the attention of an 0b10 checkpoint 8491 | -5/Proximity Caves | Lost 3 parts (2p1u) 8670 | -5/Proximity Caves | Spotted B-75 Beast 8700 | -5/Proximity Caves | System corruption reached 10% 8744 | -5/Proximity Caves | Core integrity fell below 50% 8764 | -5/Proximity Caves | Discovered exit to Factory (range 12) 8774 | -5/Proximity Caves | Lost 7 parts (1p4n2w) 8810 | -5/Proximity Caves | Escorted by Enhanced Grunt 8892 | -5/Proximity Caves | Learned Factory trap positions 8934 | -5/Proximity Caves | Entered Factory 8934 | -5/Factory | Evolved 2 slots: Propulsion x1, Utility x1 8935 | -5/Factory | Loaded intel: 68 trap records 9157 | -5/Factory | Lost 7 parts (1p1n4u1w) 9162 | -5/Factory | Identified exit to Garrison 9189 | -5/Factory | Incoming investigation squad redirected 9277 | -5/Factory | Discovered new exit (range 6) 9280 | -5/Factory | Entered Extension 9300 | -5/Extension | Rescued a captive Derelict 9333 | -5/Extension | Energy Cycler disabled 9333 | -5/Extension | Rescued a captive Derelict 9334 | -5/Extension | Rescued a captive Derelict 9336 | -5/Extension | Rescued a captive Derelict 9386 | -5/Extension | Lost 3 allies 9683 | -5/Extension | Lost 4 parts (1p3n) 9690 | -5/Extension | Build established: Scavenger-Mutant 10055 | -5/Extension | Build established: Commander-Mutant 10130 | -5/Extension | Disrupted transfer network 10271 | -5/Extension | Spotted B-75 Beast 10286 | -5/Extension | Allies destroyed B-75 Beast 10315 | -5/Extension | Spotted B-75 Beast 10329 | -5/Extension | Allies destroyed B-75 Beast 10345 | -5/Extension | Lost 4 allies 10348 | -5/Extension | Discovered new exit (range 15) 10359 | -5/Extension | Lost 12 parts (1p5n4u2w) 10411 | -5/Extension | P-70 Sage assimilated allied 5P-Z3R(g) 10455 | -5/Extension | Extracted ID and sensor layout for unrecognized location from A7's data core 10589 | -5/Extension | Build established: Scavenger-Mutant 10801 | -5/Extension | Discovered new exit (range 10) 10802 | -5/Extension | Discovered new exit (range 6) 10836 | -5/Extension | Entered Cetus 10836 | -5/Cetus | Accompanied by 5 allies 10853 | -5/Cetus | Spotted Cetus Guard 10853 | -5/Cetus | Spotted Cetus Guard 10857 | -5/Cetus | Spotted Cetus Guard 10869 | -5/Cetus | Destroyed Cetus Guard 10884 | -5/Cetus | Destroyed Cetus Guard 10889 | -5/Cetus | Spotted Cetus Guard 10912 | -5/Cetus | Lost 5 allies 10922 | -5/Cetus | Destroyed Cetus Guard 10927 | -5/Cetus | Core integrity fell below 50% 10933 | -5/Cetus | Destroyed Cetus Guard 10963 | -5/Cetus | Lost 7 parts (5n1u1w) 11082 | -5/Cetus | Cetus Manufacturing Module disabled 11119 | -5/Cetus | Discovered new exit (range 16) 11150 | -5/Cetus | Spotted Cetus Guard 11150 | -5/Cetus | Spotted Cetus Guard 11153 | -5/Cetus | Spotted Cetus Guard 11153 | -5/Cetus | Spotted Cetus Guard 11160 | -5/Cetus | Destroyed Cetus Guard 11180 | -5/Cetus | Destroyed Cetus Guard 11191 | -5/Cetus | Destroyed Cetus Guard 11194 | -5/Cetus | Destroyed Cetus Guard 11245 | -5/Cetus | Discovered new exit (range 15) 11252 | -5/Cetus | Met Revision 17 11321 | -5/Cetus | Entered Archives 11338 | -5/Archives | Met Zhirov 11344 | -5/Archives | Reinforcements dispatched to Archives 11353 | -5/Archives | Read partially decrypted archive contents 11355 | -5/Archives | Discovered new exit (range 16) 11389 | -5/Archives | Reinforcements dispatched to Archives 11393 | -5/Archives | Entered Hub_04(d) 11451 | -5/Hub_04(d) | Lost 3 parts (1n2w) 11541 | -5/Hub_04(d) | Identified exit to Garrison 11562 | -5/Hub_04(d) | Entered Garrison 11562 | -5/Garrison | Accompanied by 1 ally 11588 | -5/Garrison | Triggered checkpoint 11622 | -5/Garrison | Garrison Relay disabled 11630 | -5/Garrison | Heavy support dispatched to Factory 11894 | -5/Garrison | Triggered checkpoint 11899 | -5/Garrison | Triggered checkpoint 12007 | -5/Garrison | Discovered new exit (range 10) 12038 | -5/Garrison | Triggered checkpoint 12087 | -5/Garrison | Garrison Relay disabled 12278 | -5/Garrison | Triggered checkpoint 12281 | -5/Garrison | Core integrity fell below 20% 12363 | -5/Garrison | Garrison Relay disabled 12402 | -5/Garrison | Triggered checkpoint 12422 | -5/Garrison | Heavy support dispatched to Factory 12492 | -5/Garrison | Triggered checkpoint 12547 | -5/Garrison | Discovered new exit (range 12) 12557 | -5/Garrison | Expanded RIF knowledge: Coupler Efficiency 12571 | -5/Garrison | Spotted B-75 Beast 12624 | -5/Garrison | Rewired B-86 Titan 12634 | -5/Garrison | Allies destroyed B-75 Beast 12654 | -5/Garrison | Rewired B-86 Titan 12699 | -5/Garrison | Build established: Bothacker-Mutant 12710 | -5/Garrison | Garrison Relay disabled 12822 | -5/Garrison | Entered Factory 12822 | -4/Factory | Accompanied by 7 allies 12822 | -4/Factory | Evolved 2 slots: Utility x2 13057 | -4/Factory | Garrison activated, responded to threat 13098 | -4/Factory | Spotted B-86 Titan 13119 | -4/Factory | Lost 3 allies 13127 | -4/Factory | Allies destroyed B-86 Titan 13262 | -4/Factory | High security lockdown imminent 13301 | -4/Factory | Lost 6 allies 13342 | -4/Factory | High security lockdown engaged 13423 | -4/Factory | Discovered new exit (range 15) 13446 | -4/Factory | Identified exit to Research 13459 | -4/Factory | Lost 5 allies 13493 | -4/Factory | Entered Research 13493 | -3/Research | Accompanied by 3 allies 13493 | -3/Research | Evolved 2 slots: Utility x1, Weapon x1 13593 | -3/Research | Spotted B-86 Titan 13697 | -3/Research | Identified exit to Armory 13697 | -3/Research | Identified exit to Testing 13743 | -3/Research | First assault squad dispatched 13794 | -3/Research | Lost 5 parts (2n3u) 13808 | -3/Research | Entered Testing 13884 | -3/Testing | Found Prototype Launcher 13884 | -3/Testing | Identified Adv. Micro-nuke Launcher 14030 | -3/Testing | Build established: Scavenger-Tank 14220 | -3/Testing | Scanned by Researcher 14285 | -3/Testing | Lost 9 parts (2p1n5u1w) 14308 | -3/Testing | First assault squad dispatched 14308 | -3/Testing | Released all parts (6) 14327 | -3/Testing | Core integrity fell below 50% 14350 | -3/Testing | Spotted PY-BKO62WVR0U 14353 | -3/Testing | Lost 8 parts (2p2n1u3w) 14359 | -3/Testing | Core integrity fell below 20% 14360 | -3/Testing | System corruption reached 10% 14405 | -3/Testing | Destroyed by H-77 Assassin with High-powered Shotgun Last Messages --------------- 14385_ Slammed into S-43 Plague. 14387_ Slammed into G-73 Enforcer. 14388_ System corrupted: Energy discharge (-27). 14388_ Slammed into G-73 Enforcer. 14388_ Slug penetrates Wall. 14388_ Slug penetrates Resonance Scanner. 14389_ Slammed into G-67 Veteran. 14391_ Slammed into P-80 Master. 14391_ Penetrated by Slug. 14391_ Centrium Light Armor Plating destroyed. 14394_ Slug penetrates Door. 14394_ Slug penetrates Machine. 14394_ Machine disabled. 14395_ K-01 Serf cleans the TF Node. 14395_ Penetrated by Slug. 14395_ Slug penetrates Wall. 14403_ |5#J: VTA0 14405_ Penetrated by Slug. 14405_ Enh. Armored Leg destroyed. [Achievement: I Was Wrong!] Map ----- +----------------------------------------------------+ | ?????????????????????????????????????????????????? | | ?????????????????????????????????????????????????? | | ?????????????????????????????????????????????????? | | ?????????????????????????????????????????????????? | | ?????????????????????????????##############??????? | | ?????????????????????????????# #??????? | | ?????????????????????????????# #??????? | | ?????????????????????????????# #??????? | | ?????????????????????????????# #??????? | | ?????????????????????????????# #??????? | | ?????????????????????????????# #??????? | | ?????????????????????????????# """ """ #??????? | | ?????????????????????????????# """ """ #??????? | | ??????????????????#########??# """ """ #??????? | | ??????????????????# #??# """ """ #??????? | | ??????????????????# #??# """ """ #??????? | | ??????????????????# #??# #??????? | | ??????????????????# "" ##########/"#####??????? | | ??????????????????# """"c# #?????????? | | ??????????????????# """ # ####??????? | | ?????#####????????# ; #??????? | | ?????# #????????# p# #??????? | | ?????#! #????????# """ # g w #??????? | | ?????# #????????# "?"s # Y ####??????? | | ?????# #????????# """ #gh ##????????? | | ?????# #????????# @/ # #????????? | | ?????# #????????# s####### #????????? | | ?????? #????????# #?????# #????????? | | ??????##+##???????# #?????# " #????????? | | ####### #???????# #?????# #????????? | | " #???????# #?????# #????????? | | ####### #???????###########???# #????????? | | ??????## ##????#####???# ????### ###????????? | | ???????# #?????#"""#???# ??????# #??????????? | | ???????# #?????#"T"#???? =???????# #??????????? | | ???????# #######" "##### ???????# #??????????? | | ???????# ##+######### #??????????? | | ???????#!= [ ####???????? | | ???????#=% #???????? | | ???????# !""" """ """ #???????? | | ???????# """ """ """ #######+###### #???????? | | ???????# """ """ """ #????# +%= #???????? | | ???????# #????# [ #* #???????? | | ???????# """ """ """ #????# # #???????? | | ???????# """ """ """ #????#/ + #???????? | | ???????#! """ """ """ #????# ######???????? | | ???????# ? #????#########????????????? | | ???????# ? ? """ #?????????????????????????? | | ???????# ? ? """ ?????????????????????????? | | ???????# ? ? ??" ?????????????????????????? | +----------------------------------------------------+ Best States ------------- Heat Dissipation 116 Coolant Potential 100 Energy Generation 45 Energy Capacity 600 Matter Stores 300 Matter Capacity 450 Sight Range 16 Robot Scan Range 15 Terrain Scan Range 16 Terrain Scan Density 210 Jamming Range 16 Base Temperature (-) 150 Armor Coverage 450 Core Shielding 30 Power Shielding 66 Phase Shifting 5 Evasion (%) 80 Targeting Accuracy 14 Launcher Accuracy 30 Target Analysis 6 Armor Integrity Analysis 30 Recoil Reduction 4 Particle Charging 20 Offensive Hacking 22 Defensive Hacking 11 Relay Coupler Types 5 Relay Coupler Value 115 Item Schematics ----------------- Flamer | -7/Zion | Free Beamcaster | -7/Zion | Free Barrage Gun | -7/Zion | Free Combat Drone Bay | -6/Data Miner | Free Lgt. Regenerative Plating | -6/Data Miner | Free Cld. Nuclear Pulse Thruster | -6/Data Miner | Free Prc. Energy Filter | -6/Data Miner | Free Hvy. Proton Cannon | -6/Data Miner | Free Imp. Antigrav System | -6/Data Miner | Free Imp. Force Field | -6/Data Miner | Free Hvy. Gauss Cannon | -6/Data Miner | Free Tesla Rifle | -6/Data Miner | Free Hvy. Disruptor Cannon | -6/Data Miner | Free Adv. Launcher Guidance Computer | -6/Data Miner | Free Adv. Component Analysis Suite | -6/Data Miner | Free Robot Schematics ------------------ B-48 Gladiator | -6/Data Miner | Free H-66 Slayer | -6/Data Miner | Free E-15 Imp | -6/Data Miner | Free L-41 Fighter | -6/Data Miner | Free C-35 Carver | -3/Testing | Archive L-61 Swordsman | -3/Testing | Archive Fabricated ------------ M-28 Smith | x1 | -7/Factory | Preloaded Repaired ---------- Nothing Alien Tech Used ----------------- None Achievements -------------- I Was Wrong! Challenges ------------ None Game ------ Seed GammaLongswordFilter Manual? 0 Play Time 03:16:27 Cumulative 301.3 hours Start 2025.07.29 @ 21:27:53 End 2025.07.30 @ 22:18:42 Sessions 3 Manual Loads 0 Difficulty Rogue Special Mode None Game No. 123 Rogue 52 Adventurer 68 Explorer 3 Win Type - Total 24 Types 16/1/1/4/1/0/0/0/0/1 Lore% 75 Gallery% 73 Achievement% 71 Wizard Run 0 Options --------- Layout 0 ASCII 0 Keyboard 0 Movement Numpad Keybinds 0 Fullscreen 1 Font 24/Smallcaps Map View 76x50 Zoom Use 0% Tactical HUD 1 Map Filters NONE Filters NONE Steam 1 RUN: 7b799c95-847d-40e6-b98e-7a422b8718ff